[Event "Titled Tuesday Blitz April 18 Late 2023"]
[White "Gaehwiler, Gabriel"]
[Black "Martinez Alcantara, Jose Eduardo"]
[WhiteFideId "1314530"]
[BlackFideId "3805662"]
[WhiteElo "2437"]
[BlackElo "2711"]
[Result "0-1"]
[Round "09"]
[TimeControl "180+2"]
[Date "2023.04.18"]
[WhiteClock "0:00:03"]
[BlackClock "0:01:24"]

1. d4 {[%clk 0:02:58]}  a6 {[%clk 0:02:59]} 2. e4 {[%clk 0:02:57]}  h6 {[%clk 0:02:59]} 3. Nf3 {[%clk 0:02:57]}  g6 {[%clk 0:03:00]} 4. h4 {[%clk 0:02:56]}  Bg7 {[%clk 0:03:01]} 5. Nc3 {[%clk 0:02:55]}  d6 {[%clk 0:03:02]} 6. Bf4 {[%clk 0:02:52]}  e6 {[%clk 0:03:00]} 7. Bd3 {[%clk 0:02:49]}  Nd7 {[%clk 0:02:59]} 8. Qe2 {[%clk 0:02:48]}  Ne7 {[%clk 0:02:58]} 9. g4 {[%clk 0:02:39]}  b5 {[%clk 0:02:58]} 10. O-O-O {[%clk 0:02:32]}  Bb7 {[%clk 0:02:58]} 11. Qe3 {[%clk 0:02:17]}  b4 {[%clk 0:02:48]} 12. Ne2 {[%clk 0:02:15]}  a5 {[%clk 0:02:47]} 13. Kb1 {[%clk 0:02:13]}  a4 {[%clk 0:02:42]} 14. Bg3 {[%clk 0:02:05]}  a3 {[%clk 0:02:42]} 15. b3 {[%clk 0:02:04]}  Ra5 {[%clk 0:02:30]} 16. Qd2 {[%clk 0:01:50]}  Nc6 {[%clk 0:02:28]} 17. Bc4 {[%clk 0:01:18]}  O-O {[%clk 0:02:27]} 18. g5 {[%clk 0:01:14]}  h5 {[%clk 0:02:27]} 19. Nf4 {[%clk 0:01:13]}  Re8 {[%clk 0:02:17]} 20. Rhe1 {[%clk 0:01:09]}  Nb6 {[%clk 0:02:12]} 21. Bf1 {[%clk 0:01:07]}  Qa8 {[%clk 0:02:09]} 22. d5 {[%clk 0:01:04]}  exd5 {[%clk 0:02:03]} 23. exd5 {[%clk 0:01:03]}  Ne5 {[%clk 0:02:03]} 24. Nxe5 {[%clk 0:01:01]}  dxe5 {[%clk 0:02:02]} 25. Nd3 {[%clk 0:00:48]}  Rxd5 {[%clk 0:02:00]} 26. Qxb4 {[%clk 0:00:44]}  Qd8 {[%clk 0:02:00]} 27. Rc1 {[%clk 0:00:30]}  e4 {[%clk 0:01:59]} 28. Rxe4 {[%clk 0:00:20]}  Rxe4 {[%clk 0:01:52]} 29. Qxe4 {[%clk 0:00:21]}  Rb5 {[%clk 0:01:27]} 30. Bxc7 {[%clk 0:00:02]}  Qxc7 {[%clk 0:01:23]} 31. Qe8+ {[%clk 0:00:02]}  Kh7 {[%clk 0:01:24]} 32. Qxb5 {[%clk 0:00:03]}  Qc3 {[%clk 0:01:24]} 0-1


[Site "https://www.chess.com"]

[Event "Titled Tuesday Blitz April 18 Late 2023"]
[White "Prohaszka, Peter"]
[Black "Rodshtein, Maxim"]
[WhiteFideId "726265"]
[BlackFideId "2806851"]
[WhiteElo "2626"]
[BlackElo "2555"]
[Result "1-0"]
[Round "09"]
[TimeControl "180+2"]
[Date "2023.04.18"]
[WhiteClock "0:00:06"]
[BlackClock "0:00:01"]

1. d4 {[%clk 0:02:55]}  g6 {[%clk 0:03:00]} 2. c3 {[%clk 0:02:49]}  Bg7 {[%clk 0:02:59]} 3. e4 {[%clk 0:02:49]}  d6 {[%clk 0:03:00]} 4. Nf3 {[%clk 0:02:48]}  Nf6 {[%clk 0:03:00]} 5. Bd3 {[%clk 0:02:44]}  O-O {[%clk 0:03:00]} 6. O-O {[%clk 0:02:40]}  Nbd7 {[%clk 0:02:58]} 7. h3 {[%clk 0:02:39]}  e5 {[%clk 0:02:58]} 8. Bg5 {[%clk 0:02:37]}  h6 {[%clk 0:02:56]} 9. Be3 {[%clk 0:02:38]}  Re8 {[%clk 0:02:55]} 10. Nbd2 {[%clk 0:02:37]}  b6 {[%clk 0:02:53]} 11. a4 {[%clk 0:02:36]}  a5 {[%clk 0:02:51]} 12. Qc2 {[%clk 0:02:36]}  Bb7 {[%clk 0:02:51]} 13. Rfe1 {[%clk 0:02:29]}  Qe7 {[%clk 0:02:48]} 14. d5 {[%clk 0:02:23]}  Rf8 {[%clk 0:02:46]} 15. b4 {[%clk 0:02:23]}  Nh5 {[%clk 0:02:35]} 16. Nb3 {[%clk 0:02:00]}  Bc8 {[%clk 0:02:04]} 17. bxa5 {[%clk 0:01:56]}  bxa5 {[%clk 0:02:05]} 18. c4 {[%clk 0:01:56]}  Nf4 {[%clk 0:01:59]} 19. Bf1 {[%clk 0:01:56]}  f5 {[%clk 0:01:41]} 20. exf5 {[%clk 0:01:17]}  Rxf5 {[%clk 0:01:38]} 21. Nfd2 {[%clk 0:00:48]}  Qf7 {[%clk 0:01:07]} 22. Rac1 {[%clk 0:00:45]}  Nf6 {[%clk 0:01:05]} 23. g4 {[%clk 0:00:31]}  Nxg4 {[%clk 0:01:04]} 24. hxg4 {[%clk 0:00:31]}  Rg5 {[%clk 0:01:04]} 25. f3 {[%clk 0:00:30]}  Bxg4 {[%clk 0:01:01]} 26. Ne4 {[%clk 0:00:28]}  Bxf3+ {[%clk 0:00:45]} 27. Nxg5 {[%clk 0:00:29]}  hxg5 {[%clk 0:00:46]} 28. Nd2 {[%clk 0:00:25]}  g4 {[%clk 0:00:29]} 29. Nxf3 {[%clk 0:00:25]}  gxf3 {[%clk 0:00:30]} 30. Qe4 {[%clk 0:00:20]}  Nh5 {[%clk 0:00:30]} 31. Rc2 {[%clk 0:00:18]}  Rf8 {[%clk 0:00:27]} 32. Rh2 {[%clk 0:00:16]}  Qd7 {[%clk 0:00:16]} 33. Bd3 {[%clk 0:00:15]}  Ng3 {[%clk 0:00:09]} 34. Qxg6 {[%clk 0:00:15]}  e4 {[%clk 0:00:04]} 35. Qh7+ {[%clk 0:00:13]}  Kf7 {[%clk 0:00:03]} 36. Bxe4 {[%clk 0:00:10]}  Qg4 {[%clk 0:00:03]} 37. Qg6+ {[%clk 0:00:09]}  Qxg6 {[%clk 0:00:03]} 38. Bxg6+ {[%clk 0:00:10]}  Kxg6 {[%clk 0:00:04]} 39. Bf2 {[%clk 0:00:10]}  Ne2+ {[%clk 0:00:04]} 40. Kf1 {[%clk 0:00:10]}  Be5 {[%clk 0:00:05]} 41. Rh3 {[%clk 0:00:11]}  Kg5 {[%clk 0:00:05]} 42. Rd1 {[%clk 0:00:10]}  Kg4 {[%clk 0:00:05]} 43. Rh7 {[%clk 0:00:11]}  Ng3+ {[%clk 0:00:04]} 44. Kg1 {[%clk 0:00:11]}  Ne2+ {[%clk 0:00:03]} 45. Kf1 {[%clk 0:00:11]}  Ng3+ {[%clk 0:00:03]} 46. Bxg3 {[%clk 0:00:12]}  Bxg3 {[%clk 0:00:03]} 47. Rd4+ {[%clk 0:00:11]}  Bf4 {[%clk 0:00:03]} 48. Rg7+ {[%clk 0:00:11]}  Kf5 {[%clk 0:00:03]} 49. Kf2 {[%clk 0:00:09]}  Be5 {[%clk 0:00:02]} 50. Rdg4 {[%clk 0:00:08]}  Rb8 {[%clk 0:00:03]} 51. R7g5+ {[%clk 0:00:08]}  Kf6 {[%clk 0:00:03]} 52. Kxf3 {[%clk 0:00:08]}  Rb3+ {[%clk 0:00:03]} 53. Ke4 {[%clk 0:00:08]}  Rc3 {[%clk 0:00:04]} 54. Rg6+ {[%clk 0:00:09]}  Kf7 {[%clk 0:00:04]} 55. Kf5 {[%clk 0:00:09]}  Rf3+ {[%clk 0:00:04]} 56. Kg5 {[%clk 0:00:07]}  Rc3 {[%clk 0:00:05]} 57. Re6 {[%clk 0:00:06]}  Ra3 {[%clk 0:00:03]} 58. Rh4 {[%clk 0:00:06]}  Rxa4 {[%clk 0:00:01]} 59. Rh7+ {[%clk 0:00:07]}  Kg8 {[%clk 0:00:01]} 60. Rxc7 {[%clk 0:00:06]}  Ra3 {[%clk 0:00:01]} 61. Re8# {[%clk 0:00:06]} 1-0


[Site "https://www.chess.com"]

[Event "Titled Tuesday Blitz April 18 Late 2023"]
[White "Zhigalko_Sergei"]
[Black "Sieciechowicz, Marcin"]
[BlackFideId "1130170"]
[WhiteElo "2899"]
[BlackElo "2302"]
[Result "1-0"]
[Round "09"]
[TimeControl "180+2"]
[Date "2023.04.18"]
[WhiteClock "0:01:30"]
[BlackClock "0:01:24"]

1. e4 {[%clk 0:03:00]}  c5 {[%clk 0:02:55]} 2. Nf3 {[%clk 0:03:00]}  d6 {[%clk 0:02:56]} 3. d4 {[%clk 0:03:00]}  cxd4 {[%clk 0:02:57]} 4. Qxd4 {[%clk 0:03:01]}  Nc6 {[%clk 0:02:56]} 5. Bb5 {[%clk 0:03:01]}  Bd7 {[%clk 0:02:57]} 6. Bxc6 {[%clk 0:03:01]}  Bxc6 {[%clk 0:02:58]} 7. Nc3 {[%clk 0:03:01]}  Nf6 {[%clk 0:02:58]} 8. Bg5 {[%clk 0:03:02]}  e6 {[%clk 0:02:58]} 9. O-O-O {[%clk 0:03:02]}  Be7 {[%clk 0:02:58]} 10. Rhe1 {[%clk 0:03:02]}  O-O {[%clk 0:02:58]} 11. Kb1 {[%clk 0:03:02]}  Qa5 {[%clk 0:02:56]} 12. Qd2 {[%clk 0:03:03]}  Qa6 {[%clk 0:02:47]} 13. Nd4 {[%clk 0:03:02]}  Rac8 {[%clk 0:02:44]} 14. f3 {[%clk 0:03:02]}  Rfd8 {[%clk 0:02:42]} 15. g4 {[%clk 0:03:02]}  Be8 {[%clk 0:02:38]} 16. Nce2 {[%clk 0:02:49]}  b5 {[%clk 0:02:30]} 17. Ng3 {[%clk 0:02:49]}  Qb7 {[%clk 0:02:26]} 18. Rg1 {[%clk 0:02:46]}  h6 {[%clk 0:02:03]} 19. Be3 {[%clk 0:02:16]}  b4 {[%clk 0:01:43]} 20. g5 {[%clk 0:01:59]}  hxg5 {[%clk 0:01:39]} 21. Bxg5 {[%clk 0:02:00]}  Nh7 {[%clk 0:01:26]} 22. Bxe7 {[%clk 0:01:32]}  Qxe7 {[%clk 0:01:27]} 23. Ngf5 {[%clk 0:01:30]}  exf5 {[%clk 0:01:24]} 24. Rxg7+ {[%clk 0:01:30]} 1-0


[Site "https://www.chess.com"]

[Event "Titled Tuesday Blitz April 18 Late 2023"]
[White "Aldokhin, Ivan"]
[Black "Karacsonyi, Gellert"]
[WhiteFideId "24115720"]
[BlackFideId "764620"]
[WhiteElo "2322"]
[BlackElo "2308"]
[Result "1-0"]
[Round "09"]
[TimeControl "180+2"]
[Date "2023.04.18"]
[WhiteClock "0:00:03"]
[BlackClock "0:00:31"]

1. e4 {[%clk 0:02:58]}  c5 {[%clk 0:02:59]} 2. Nf3 {[%clk 0:02:57]}  Nc6 {[%clk 0:02:59]} 3. d4 {[%clk 0:02:57]}  cxd4 {[%clk 0:03:00]} 4. Nxd4 {[%clk 0:02:57]}  g6 {[%clk 0:03:01]} 5. Nc3 {[%clk 0:02:57]}  Bg7 {[%clk 0:03:01]} 6. Be3 {[%clk 0:02:58]}  Nf6 {[%clk 0:03:02]} 7. Bc4 {[%clk 0:02:58]}  O-O {[%clk 0:03:02]} 8. Bb3 {[%clk 0:02:58]}  Re8 {[%clk 0:03:03]} 9. O-O {[%clk 0:02:58]}  d6 {[%clk 0:03:03]} 10. h3 {[%clk 0:02:57]}  Na5 {[%clk 0:03:03]} 11. Re1 {[%clk 0:02:56]}  b6 {[%clk 0:03:03]} 12. Bg5 {[%clk 0:02:56]}  Nxb3 {[%clk 0:03:00]} 13. axb3 {[%clk 0:02:53]}  Bb7 {[%clk 0:03:00]} 14. Qd2 {[%clk 0:02:42]}  a6 {[%clk 0:03:00]} 15. Rad1 {[%clk 0:02:33]}  b5 {[%clk 0:03:00]} 16. Bxf6 {[%clk 0:01:50]}  Bxf6 {[%clk 0:03:00]} 17. Nd5 {[%clk 0:01:51]}  Bg7 {[%clk 0:02:56]} 18. c3 {[%clk 0:01:51]}  e6 {[%clk 0:02:53]} 19. Nb4 {[%clk 0:01:35]}  Qb6 {[%clk 0:02:52]} 20. Nbc2 {[%clk 0:01:27]}  Rad8 {[%clk 0:02:53]} 21. Qe3 {[%clk 0:01:24]}  d5 {[%clk 0:02:49]} 22. e5 {[%clk 0:01:22]}  a5 {[%clk 0:02:45]} 23. b4 {[%clk 0:01:20]}  Ra8 {[%clk 0:02:39]} 24. h4 {[%clk 0:01:12]}  h5 {[%clk 0:02:31]} 25. Qf4 {[%clk 0:01:05]}  Re7 {[%clk 0:02:25]} 26. Rd3 {[%clk 0:01:05]}  Kh7 {[%clk 0:02:25]} 27. g4 {[%clk 0:01:04]}  Rg8 {[%clk 0:01:59]} 28. gxh5 {[%clk 0:00:40]}  Bh6 {[%clk 0:01:52]} 29. Qf6 {[%clk 0:00:35]}  Qd8 {[%clk 0:01:52]} 30. bxa5 {[%clk 0:00:26]}  Qf8 {[%clk 0:01:50]} 31. Rg3 {[%clk 0:00:24]}  gxh5 {[%clk 0:01:40]} 32. Kh2 {[%clk 0:00:17]}  Rxg3 {[%clk 0:01:38]} 33. fxg3 {[%clk 0:00:17]}  Bg7 {[%clk 0:01:30]} 34. Qf3 {[%clk 0:00:16]}  Bh6 {[%clk 0:01:27]} 35. Qxh5 {[%clk 0:00:15]}  Qg7 {[%clk 0:01:27]} 36. Rf1 {[%clk 0:00:09]}  Kg8 {[%clk 0:01:22]} 37. Rf6 {[%clk 0:00:08]}  Bc1 {[%clk 0:01:13]} 38. b4 {[%clk 0:00:08]}  Ba6 {[%clk 0:00:58]} 39. Kg2 {[%clk 0:00:06]}  Rc7 {[%clk 0:00:59]} 40. Rf3 {[%clk 0:00:03]}  Bd2 {[%clk 0:00:58]} 41. Ne3 {[%clk 0:00:02]}  Rxc3 {[%clk 0:00:56]} 42. Ng4 {[%clk 0:00:02]}  Rxf3 {[%clk 0:00:56]} 43. Kxf3 {[%clk 0:00:02]}  Kf8 {[%clk 0:00:50]} 44. Nf6 {[%clk 0:00:03]}  Be1 {[%clk 0:00:51]} 45. Nxe6+ {[%clk 0:00:03]}  Ke7 {[%clk 0:00:44]} 46. Nxg7 {[%clk 0:00:04]}  d4 {[%clk 0:00:45]} 47. Nf5+ {[%clk 0:00:04]}  Kd8 {[%clk 0:00:45]} 48. Nxd4 {[%clk 0:00:04]}  Bb7+ {[%clk 0:00:45]} 49. Ke2 {[%clk 0:00:05]}  Bxb4 {[%clk 0:00:46]} 50. Qxf7 {[%clk 0:00:05]}  Bc8 {[%clk 0:00:46]} 51. Qf8+ {[%clk 0:00:05]}  Bxf8 {[%clk 0:00:44]} 52. Nxb5 {[%clk 0:00:05]}  Ba6 {[%clk 0:00:45]} 53. Ke3 {[%clk 0:00:05]}  Bxb5 {[%clk 0:00:45]} 54. g4 {[%clk 0:00:04]}  Bb4 {[%clk 0:00:45]} 55. g5 {[%clk 0:00:04]}  Bxa5 {[%clk 0:00:45]} 56. h5 {[%clk 0:00:04]}  Ke7 {[%clk 0:00:45]} 57. g6 {[%clk 0:00:04]}  Bc4 {[%clk 0:00:41]} 58. h6 {[%clk 0:00:03]}  Bb6+ {[%clk 0:00:35]} 59. Kf4 {[%clk 0:00:03]}  Kf8 {[%clk 0:00:27]} 60. g7+ {[%clk 0:00:03]}  Ke7 {[%clk 0:00:27]} 61. h7 {[%clk 0:00:03]}  Ba5 {[%clk 0:00:28]} 62. g8=Q {[%clk 0:00:03]}  Bd2+ {[%clk 0:00:29]} 63. Kf3 {[%clk 0:00:03]}  Bxg8 {[%clk 0:00:30]} 64. hxg8=Q {[%clk 0:00:03]}  Bc3 {[%clk 0:00:31]} 65. Qe8# {[%clk 0:00:03]} 1-0


[Site "https://www.chess.com"]

[Event "Titled Tuesday Blitz April 18 Late 2023"]
[White "Costachi, Mihnea"]
[Black "Averjanov, Alexey"]
[WhiteFideId "1217518"]
[BlackFideId "14109867"]
[WhiteElo "2456"]
[BlackElo "2651"]
[Result "1/2-1/2"]
[Round "09"]
[TimeControl "180+2"]
[Date "2023.04.18"]
[WhiteClock "0:00:34"]
[BlackClock "0:00:08"]

1. d4 {[%clk 0:03:00]}  d5 {[%clk 0:02:59]} 2. c4 {[%clk 0:03:00]}  dxc4 {[%clk 0:02:59]} 3. Nf3 {[%clk 0:03:01]}  Nf6 {[%clk 0:03:00]} 4. e3 {[%clk 0:03:02]}  e6 {[%clk 0:03:00]} 5. Bxc4 {[%clk 0:03:02]}  a6 {[%clk 0:03:00]} 6. O-O {[%clk 0:03:02]}  b5 {[%clk 0:03:01]} 7. Be2 {[%clk 0:03:00]}  Bb7 {[%clk 0:03:01]} 8. a4 {[%clk 0:02:58]}  b4 {[%clk 0:03:01]} 9. b3 {[%clk 0:02:56]}  Nbd7 {[%clk 0:03:01]} 10. Bb2 {[%clk 0:02:56]}  c5 {[%clk 0:03:01]} 11. Nbd2 {[%clk 0:02:57]}  Be7 {[%clk 0:03:01]} 12. Nc4 {[%clk 0:02:57]}  Qc7 {[%clk 0:03:02]} 13. Rc1 {[%clk 0:02:56]}  O-O {[%clk 0:03:02]} 14. h3 {[%clk 0:02:53]}  Rfd8 {[%clk 0:03:02]} 15. Qc2 {[%clk 0:02:53]}  Rac8 {[%clk 0:03:02]} 16. Rfd1 {[%clk 0:02:52]}  h6 {[%clk 0:03:02]} 17. Qb1 {[%clk 0:02:53]}  Ne4 {[%clk 0:03:02]} 18. Qa1 {[%clk 0:02:49]}  Ndf6 {[%clk 0:02:58]} 19. dxc5 {[%clk 0:02:44]}  Bxc5 {[%clk 0:02:55]} 20. a5 {[%clk 0:02:40]}  Rxd1+ {[%clk 0:02:42]} 21. Rxd1 {[%clk 0:02:37]}  Rd8 {[%clk 0:02:40]} 22. Be5 {[%clk 0:02:34]}  Qe7 {[%clk 0:02:37]} 23. Rxd8+ {[%clk 0:02:25]}  Qxd8 {[%clk 0:02:38]} 24. Bd4 {[%clk 0:02:24]}  Bxd4 {[%clk 0:02:37]} 25. Qxd4 {[%clk 0:02:24]}  Qxd4 {[%clk 0:02:36]} 26. Nxd4 {[%clk 0:02:25]}  Nc5 {[%clk 0:02:29]} 27. Nd6 {[%clk 0:02:13]}  Bd5 {[%clk 0:02:27]} 28. f3 {[%clk 0:01:56]}  Kf8 {[%clk 0:02:14]} 29. e4 {[%clk 0:01:50]}  Bxb3 {[%clk 0:02:12]} 30. Bxa6 {[%clk 0:01:51]}  Nxa6 {[%clk 0:02:06]} 31. Nxb3 {[%clk 0:01:51]}  Ke7 {[%clk 0:02:06]} 32. Nc4 {[%clk 0:01:45]}  Nd7 {[%clk 0:01:58]} 33. Kf2 {[%clk 0:01:45]}  Ndc5 {[%clk 0:01:55]} 34. Nxc5 {[%clk 0:01:46]}  Nxc5 {[%clk 0:01:56]} 35. Ke3 {[%clk 0:01:46]}  f6 {[%clk 0:01:43]} 36. Kd4 {[%clk 0:01:44]}  Nb3+ {[%clk 0:01:42]} 37. Kd3 {[%clk 0:01:44]}  Nc5+ {[%clk 0:01:42]} 38. Kd4 {[%clk 0:01:39]}  Nb3+ {[%clk 0:01:42]} 39. Ke3 {[%clk 0:01:40]}  Nc5 {[%clk 0:01:35]} 40. Nb2 {[%clk 0:01:33]}  Kd7 {[%clk 0:01:29]} 41. Kd4 {[%clk 0:01:32]}  Kc6 {[%clk 0:01:23]} 42. Kc4 {[%clk 0:01:31]}  b3 {[%clk 0:01:19]} 43. Kb4 {[%clk 0:01:23]}  g6 {[%clk 0:01:08]} 44. h4 {[%clk 0:01:22]}  h5 {[%clk 0:01:07]} 45. Kc4 {[%clk 0:01:19]}  g5 {[%clk 0:01:02]} 46. hxg5 {[%clk 0:01:19]}  fxg5 {[%clk 0:01:03]} 47. Kb4 {[%clk 0:01:20]}  g4 {[%clk 0:00:54]} 48. fxg4 {[%clk 0:01:19]}  hxg4 {[%clk 0:00:55]} 49. e5 {[%clk 0:01:20]}  g3 {[%clk 0:00:47]} 50. Kc4 {[%clk 0:01:20]}  Nd7 {[%clk 0:00:45]} 51. Nd3 {[%clk 0:01:17]}  Nc5 {[%clk 0:00:37]} 52. Nb2 {[%clk 0:00:52]}  Nd7 {[%clk 0:00:37]} 53. Kxb3 {[%clk 0:00:51]}  Nxe5 {[%clk 0:00:37]} 54. Kc3 {[%clk 0:00:50]}  Ng6 {[%clk 0:00:34]} 55. Nd3 {[%clk 0:00:42]}  e5 {[%clk 0:00:24]} 56. Kc4 {[%clk 0:00:36]}  e4 {[%clk 0:00:21]} 57. Nb4+ {[%clk 0:00:34]}  Kb7 {[%clk 0:00:19]} 58. Kd4 {[%clk 0:00:35]}  Nf4 {[%clk 0:00:15]} 59. Kxe4 {[%clk 0:00:35]}  Nxg2 {[%clk 0:00:15]} 60. Kf3 {[%clk 0:00:36]}  Nf4 {[%clk 0:00:12]} 61. Kxg3 {[%clk 0:00:35]}  Ne6 {[%clk 0:00:10]} 62. Kf3 {[%clk 0:00:34]}  Nd4+ {[%clk 0:00:10]} 63. Ke4 {[%clk 0:00:34]}  Nc6 {[%clk 0:00:10]} 64. a6+ {[%clk 0:00:33]}  Kb6 {[%clk 0:00:09]} 65. Nxc6 {[%clk 0:00:34]}  Kxa6 {[%clk 0:00:08]} 1/2-1/2


[Site "https://www.chess.com"]

[Event "Titled Tuesday Blitz April 18 Late 2023"]
[White "Kushko, Dmitriy"]
[Black "Adla, Diego"]
[WhiteFideId "14162261"]
[BlackFideId "100072"]
[WhiteElo "2230"]
[BlackElo "2377"]
[Result "0-1"]
[Round "09"]
[TimeControl "180+2"]
[Date "2023.04.18"]
[WhiteClock "0:00:18"]
[BlackClock "0:00:45"]

1. f4 {[%clk 0:03:00]}  e5 {[%clk 0:02:55]} 2. fxe5 {[%clk 0:03:01]}  d6 {[%clk 0:02:55]} 3. exd6 {[%clk 0:03:02]}  Bxd6 {[%clk 0:02:55]} 4. Nf3 {[%clk 0:03:03]}  Nf6 {[%clk 0:02:55]} 5. e3 {[%clk 0:03:02]}  O-O {[%clk 0:02:39]} 6. Be2 {[%clk 0:03:02]}  Re8 {[%clk 0:02:34]} 7. O-O {[%clk 0:03:02]}  Bg4 {[%clk 0:02:28]} 8. c4 {[%clk 0:03:00]}  Nbd7 {[%clk 0:02:19]} 9. d4 {[%clk 0:02:55]}  c5 {[%clk 0:02:16]} 10. Nc3 {[%clk 0:02:55]}  Rc8 {[%clk 0:02:08]} 11. Kh1 {[%clk 0:02:49]}  a6 {[%clk 0:02:03]} 12. b3 {[%clk 0:02:46]}  cxd4 {[%clk 0:01:58]} 13. exd4 {[%clk 0:02:44]}  Qa5 {[%clk 0:01:57]} 14. Bd2 {[%clk 0:02:34]}  Qh5 {[%clk 0:01:57]} 15. Rf2 {[%clk 0:02:04]}  b5 {[%clk 0:01:50]} 16. c5 {[%clk 0:02:00]}  Bg3 {[%clk 0:01:48]} 17. Kg1 {[%clk 0:01:39]}  Bxf2+ {[%clk 0:01:46]} 18. Kxf2 {[%clk 0:01:40]}  b4 {[%clk 0:01:46]} 19. Na4 {[%clk 0:01:40]}  Ne4+ {[%clk 0:01:45]} 20. Kg1 {[%clk 0:01:39]}  Ndf6 {[%clk 0:01:43]} 21. Bxb4 {[%clk 0:01:34]}  Rcd8 {[%clk 0:01:41]} 22. h3 {[%clk 0:01:26]}  Bxh3 {[%clk 0:01:40]} 23. gxh3 {[%clk 0:01:23]}  Ng3 {[%clk 0:01:36]} 24. Bf1 {[%clk 0:01:22]}  Re3 {[%clk 0:01:34]} 25. Bg2 {[%clk 0:01:20]}  Rde8 {[%clk 0:01:30]} 26. Be1 {[%clk 0:01:11]}  Ne2+ {[%clk 0:01:29]} 27. Kf2 {[%clk 0:01:07]}  Rxf3+ {[%clk 0:00:59]} 28. Bxf3 {[%clk 0:01:04]}  Qh4+ {[%clk 0:01:00]} 29. Kf1 {[%clk 0:00:39]}  Qxh3+ {[%clk 0:00:59]} 30. Bg2 {[%clk 0:00:39]}  Qf5+ {[%clk 0:00:59]} 31. Bf2 {[%clk 0:00:40]}  Ng4 {[%clk 0:00:58]} 32. Qxe2 {[%clk 0:00:34]}  Rxe2 {[%clk 0:00:57]} 33. Kxe2 {[%clk 0:00:35]}  Qxf2+ {[%clk 0:00:57]} 34. Kd3 {[%clk 0:00:36]}  Qxg2 {[%clk 0:00:57]} 35. Nc3 {[%clk 0:00:36]}  Qf3+ {[%clk 0:00:55]} 36. Kc4 {[%clk 0:00:33]}  Ne3+ {[%clk 0:00:52]} 37. Kb4 {[%clk 0:00:30]}  Nc2+ {[%clk 0:00:52]} 38. Kc4 {[%clk 0:00:30]}  Nxa1 {[%clk 0:00:52]} 39. d5 {[%clk 0:00:30]}  Nc2 {[%clk 0:00:50]} 40. c6 {[%clk 0:00:29]}  Ne3+ {[%clk 0:00:50]} 41. Kc5 {[%clk 0:00:29]}  Qf6 {[%clk 0:00:46]} 42. Ne4 {[%clk 0:00:27]}  Qe7+ {[%clk 0:00:44]} 43. Kd4 {[%clk 0:00:19]}  Nf5+ {[%clk 0:00:44]} 44. Kd3 {[%clk 0:00:20]}  Nd6 {[%clk 0:00:45]} 45. Nc5 {[%clk 0:00:20]}  h5 {[%clk 0:00:44]} 46. Nxa6 {[%clk 0:00:19]}  h4 {[%clk 0:00:45]} 47. c7 {[%clk 0:00:18]}  h3 {[%clk 0:00:45]} 0-1


[Site "https://www.chess.com"]

[Event "Titled Tuesday Blitz April 18 Late 2023"]
[White "Di Berardino, Diego Rafael"]
[Black "Holt, Conrad"]
[WhiteFideId "2105446"]
[BlackFideId "2034387"]
[WhiteElo "2432"]
[BlackElo "2592"]
[Result "0-1"]
[Round "09"]
[TimeControl "180+2"]
[Date "2023.04.18"]
[WhiteClock "0:00:08"]
[BlackClock "0:00:39"]

1. e4 {[%clk 0:03:00]}  e6 {[%clk 0:02:58]} 2. d4 {[%clk 0:02:56]}  d5 {[%clk 0:02:59]} 3. Nd2 {[%clk 0:02:55]}  c5 {[%clk 0:02:58]} 4. exd5 {[%clk 0:02:55]}  Qxd5 {[%clk 0:02:58]} 5. dxc5 {[%clk 0:02:55]}  Qxc5 {[%clk 0:02:58]} 6. Ngf3 {[%clk 0:02:54]}  Nf6 {[%clk 0:02:52]} 7. Bd3 {[%clk 0:02:52]}  Nbd7 {[%clk 0:02:50]} 8. O-O {[%clk 0:02:53]}  Qc7 {[%clk 0:02:48]} 9. Qe2 {[%clk 0:02:49]}  Nc5 {[%clk 0:02:47]} 10. Bc4 {[%clk 0:02:44]}  Be7 {[%clk 0:02:45]} 11. a4 {[%clk 0:02:41]}  O-O {[%clk 0:02:44]} 12. a5 {[%clk 0:02:41]}  Rd8 {[%clk 0:02:36]} 13. b3 {[%clk 0:02:39]}  Bd7 {[%clk 0:02:27]} 14. Ne5 {[%clk 0:02:29]}  Be8 {[%clk 0:02:26]} 15. Bb2 {[%clk 0:02:28]}  Nd5 {[%clk 0:02:24]} 16. Ne4 {[%clk 0:01:48]}  Nxe4 {[%clk 0:02:18]} 17. Qxe4 {[%clk 0:01:49]}  Bf6 {[%clk 0:02:17]} 18. Rfe1 {[%clk 0:01:37]}  Rac8 {[%clk 0:02:14]} 19. h4 {[%clk 0:01:32]}  Nb4 {[%clk 0:02:07]} 20. h5 {[%clk 0:01:25]}  h6 {[%clk 0:01:56]} 21. Re2 {[%clk 0:01:03]}  Nc6 {[%clk 0:01:44]} 22. Bd3 {[%clk 0:00:18]}  Bxe5 {[%clk 0:01:32]} 23. Bxe5 {[%clk 0:00:14]}  Nxe5 {[%clk 0:01:29]} 24. Qxe5 {[%clk 0:00:14]}  Qc3 {[%clk 0:01:10]} 25. Qxc3 {[%clk 0:00:13]}  Rxc3 {[%clk 0:01:10]} 26. f3 {[%clk 0:00:13]}  Rd5 {[%clk 0:01:03]} 27. g4 {[%clk 0:00:13]}  Bb5 {[%clk 0:01:00]} 28. Bxb5 {[%clk 0:00:11]}  Rxb5 {[%clk 0:00:59]} 29. Kf2 {[%clk 0:00:11]}  a6 {[%clk 0:00:56]} 30. Ra2 {[%clk 0:00:11]}  Kf8 {[%clk 0:00:54]} 31. Re3 {[%clk 0:00:11]}  Rcc5 {[%clk 0:00:51]} 32. c4 {[%clk 0:00:11]}  Rxa5 {[%clk 0:00:49]} 33. Rd2 {[%clk 0:00:09]}  Rc7 {[%clk 0:00:49]} 34. Red3 {[%clk 0:00:09]}  Ke7 {[%clk 0:00:47]} 35. Rd8 {[%clk 0:00:09]}  Ra3 {[%clk 0:00:44]} 36. Rg8 {[%clk 0:00:10]}  Kf6 {[%clk 0:00:43]} 37. Rd3 {[%clk 0:00:10]}  Rxc4 {[%clk 0:00:40]} 38. Ke3 {[%clk 0:00:09]}  Rb4 {[%clk 0:00:40]} 39. f4 {[%clk 0:00:08]}  Rbxb3 {[%clk 0:00:40]} 40. Rxb3 {[%clk 0:00:08]}  Rxb3+ {[%clk 0:00:40]} 41. Ke4 {[%clk 0:00:08]}  Rb4+ {[%clk 0:00:39]} 42. Kf3 {[%clk 0:00:08]}  a5 {[%clk 0:00:39]} 0-1


[Site "https://www.chess.com"]